Cogmind - Beta 15 @@@ ROGUE MODE // 2025.10.14 @ 03:33:16 Player: aliser Result: Destroyed by D-53 Grenadier with Mini Grenade Launcher Performance ------------- Evolutions (0) 0 Regions Visited (2) 400 Robots Destroyed (14) 70 Value Destroyed (283) 283 Prototype IDs (0) 0 Alien Tech Used (0) 0 Bonus (0) 0 TOTAL SCORE: 753 Bonus ------- None Cogmind --------- Core Integrity 0/250 Matter 265/300 Energy 44/100 System Corruption 0% Temperature Cool (0) Movement Core (750) Ox14 Location -10/Mines Parts ------- > --- POWER (1) -------- (None) > --- PROPULSION (2) --- (None) > --- UTILITY (2) ------ High-capacity Storage Unit > --- WEAPON (2) ------- Assault Rifle Light Assault Rifle > --- INVENTORY (20) --- Ion Engine Ion Engine Light Treads Aluminum Leg Compact Wheel Compact Wheel High-capacity Storage Unit Medium Matter Pod (46) Transport Network Coupler Peak State ------------ > --- POWER ------------ Light Ion Engine > --- PROPULSION ------- Light Treads Light Treads > --- UTILITY ---------- Small Storage Unit Improved Terrain Scanner > --- WEAPON ----------- Particle Gun Assault Rifle > --- INVENTORY -------- Ion Engine Light Nuclear Core Wheel Wheel Compact Wheel Seismic Detector Assault Rifle Light Assault Rifle [Rating: 11] Favorites ----------- Power Light Ion Engine Engine Light Ion Engine Propulsion Light Treads Treads Light Treads Wheel Wheel Utility Improved Terrain Scanner Device Improved Terrain Scanner Storage High-capacity Storage Unit Weapon Assault Rifle Energy Gun Particle Gun Ballistic Gun Assault Rifle Build | -11 -10 -10 ------- Run | Yrd Mat Min Slots Evolved . | . . . Power . | . . . Propulsion . | . . . Utility . | . . . Weapon . | . . . Parts Attached 16 | 8 4 4 Power 3 | 1 1 1 Engine 3 | 1 1 1 Core . | . . . Reactor . | . . . Propulsion 5 | 2 1 2 Treads 3 | 2 1 . Leg . | . . . Wheel 2 | . . 2 Hover . | . . . Flight . | . . . Utility 4 | 3 1 . Device 2 | 2 . . Storage 2 | 1 1 . Processor . | . . . Hackware . | . . . Protection . | . . . Artifact . | . . . Weapon 4 | 2 1 1 Energy Gun 1 | . 1 . Energy Cannon . | . . . Ballistic Gun 3 | 2 . 1 Ballistic Cannon . | . . . Launcher . | . . . Special Weapon . | . . . Impact Weapon . | . . . Slashing Weapon . | . . . Piercing Weapon . | . . . Special Melee Weapon . | . . . Unidentified Prototypes . | . . . Parts Lost 9 | . . 9 Power 2 | . . 2 Propulsion 4 | . . 4 Utility 1 | . . 1 Weapon 2 | . . 2 Highest Loss Streak 9 | . . 9 To Critical Strikes . | . . . Average Backups 8 | 3 8 13 Power 1 | . 1 2 Propulsion 3 | 2 3 5 Utility 1 | . 1 3 Weapon 1 | . 1 2 Tool/Special . | . . . Unused Backups 8 | . 1 7 Power 3 | . 1 2 Propulsion 3 | . . 3 Utility 2 | . . 2 Weapon . | . . . Tool/Special . | . . . Average Slot Usage (%) 99 | . 100 96 Engine 14 | . 14 14 Treads 27 | . 28 27 Device 13 | . 14 13 Storage 14 | . 14 14 Energy Gun 10 | . 9 13 Ballistic Gun 17 | . 18 13 Peak Build Rating 11 | 9 11 11 Average Rating 9 | 6 10 10 On Entrance 6 | . 9 11 Naked Turns . | . . . Heaviest Build 49 | 12 49 49 Greatest Support 40 | 40 40 40 Greatest Overweight (x) 4 | 1 1 4 Average Overweight (x) . | . . 1 Largest Inventory Capacity 20 | 8 20 20 Average Capacity 14 | 7 14 20 Most Carried 14 | 6 12 14 Average Carried 8 | 4 8 13 Final Capacity 20 | 8 20 20 Final Carried 12 | 6 12 9 Class Distribution -------------------- 100% | Mutant Dominant Class ---------------- Mutant | -10/Materials Mutant | -10/Mines Resources | -11 -10 -10 ----------- Run | Yrd Mat Min Matter Collected 540 | 308 175 57 Remotely . | . . . Salvage Created 453 | 84 351 18 Parts 29 | 7 20 2 Haulers Intercepted 1 | . 1 . Recyclers Shooed . | . . . Parts Field Recycled . | . . . Retrieved Matter . | . . . Parts Self-Destructed . | . . . Prevented . | . . . Kills | -11 -10 -10 ------- Run | Yrd Mat Min Combat Hostiles Destroyed 9 | . 9 . Guns 9 | . 9 . Classes Destroyed 7 | 2 4 1 Builder 1 | . . 1 Tunneler 1 | 1 . . Hauler 1 | . 1 . Recycler 1 | 1 . . Watcher 1 | . 1 . Swarmer 3 | . 3 . Grunt 6 | . 6 . Best Kill Streak 3 | 2 3 1 Combat Bots Only 3 | . 3 . Max Kills in Single Turn 1 | 1 1 1 Gunslinging . | . . . Exploded . | . . . Melee . | . . . Uniques/NPCs Destroyed . | . . . Combat | -11 -10 -10 -------- Run | Yrd Mat Min Hostile Shots Fired 56 | . 30 26 Missed 9 | . 6 3 Hits 47 | . 24 23 Projectile 47 | . 24 23 AOE 20 | . . 20 Critical Strikes 1 | . 1 . Damage Taken 1158 | . 268 890 Core 251 | . 33 218 Absorbed by Shields . | . . . Regen/Repaired (Parts) 93 | . 93 . Core Remaining (%) 100 | 100 . . Volleys Fired 49 | 7 40 2 Largest 2 | 2 2 2 Hottest 85 | 40 85 85 Shots Fired 98 | 14 80 4 Gun 98 | 14 80 4 Cannon . | . . . Launcher . | . . . Special . | . . . Kinetic 76 | 14 60 2 Thermal 22 | . 20 2 Explosive . | . . . Electromagnetic . | . . . Robot Hit Streak 12 | 3 12 1 Robot Miss Streak 3 | 2 2 3 Penetration Max . | . . . Secondary Targets . | . . . Shots Hit Robots 60 | 9 50 1 Core Hits 25 | 3 21 1 Critical Kills . | . . . Critical Parts Destroyed . | . . . Critical Strikes . | . . . Melee Attacks . | . . . Impact . | . . . Slashing . | . . . Piercing . | . . . Sneak Attacks . | . . . Combat Hostiles . | . . . Follow-up Attacks . | . . . Damage Inflicted 737 | 89 626 22 Guns 737 | 89 626 22 Cannons . | . . . Explosions . | . . . Melee . | . . . Ramming . | . . . Kinetic 538 | 89 427 22 Thermal 199 | . 199 . Explosive . | . . . Electromagnetic . | . . . Impact . | . . . Slashing . | . . . Piercing . | . . . Highest Corruption . | . . . Average Corruption . | . . . Corruption Purged . | . . . Corruption Blocked . | . . . Overload Shots . | . . . Overflow Damage . | . . . Projectiles . | . . . Explosions . | . . . Melee . | . . . Knockbacks . | . . . Impact . | . . . Kinetic . | . . . Secondary . | . . . Self-Inflicted Damage . | . . . Shots . | . . . Rammed . | . . . Targets Rammed . | . . . Kicked . | . . . Crushed . | . . . Highest Temperature 96 | . 96 60 Average Temperature 36 | . 36 35 Received Heat Transfer 165 | . 138 27 Siege Activations . | . . . Martial Activations . | . . . Shielding Activations . | . . . Robots Disrupted . | . . . Combat Hostiles . | . . . Robots Corrupted . | . . . Combat Hostiles . | . . . Parts Fried . | . . . Impact Corruptions . | . . . Robots Melted . | . . . Combat Hostiles . | . . . Parts Melted . | . . . Heat Transferred 481 | . 481 . Parts Sabotaged . | . . . Parts Stolen . | . . . Parts Stripped . | . . . Power Chain Reactions . | . . . Alert | -11 -10 -10 ------- Run | Yrd Mat Min Maximum Alert Level . | . . . Low Security (%) 100 | 100 100 100 Level 1 . | . . . Level 2 . | . . . Level 3 . | . . . Level 4 . | . . . Level 5 . | . . . High Security . | . . . Max Security . | . . . Peak Influence 127 | 5 127 5 Initial . | . . . Average 36 | . 54 . Influence Increases 268 | 10 253 5 Destroy 0b10 Robot/C 180 | . 180 . Destroy 0b10 Robot/NC 25 | 10 10 5 Destroy Leader 44 | . 44 . Successful Hack 19 | . 19 . Influence Decreases 268 | 10 253 5 Time Decay 263 | 10 253 . Lost Part 5 | . . 5 Squads Dispatched 2 | . 2 . Investigation 2 | . 2 . Extermination . | . . . Reinforcement . | . . . Assault . | . . . Garrison . | . . . Intercept . | . . . Searches Triggered . | . . . Construction Impeded . | . . . Haulers Reinforced . | . . . Active Scanning Responses . | . . . Cargo Convoy Interrupts . | . . . Stealth | -11 -10 -10 --------- Run | Yrd Mat Min Distress Signals 1 | . 1 . Communications Jammed . | . . . Distress Signals . | . . . Times Spotted 19 | . 16 3 Peak Tracking Total 4 | . 4 3 Tactical Retreats . | . . . Traps | -11 -10 -10 ------- Run | Yrd Mat Min Traps Triggered . | . . . Indirectly . | . . . Trap Hack Attempts . | . . . Triggered . | . . . Disarmed . | . . . Reprogrammed . | . . . Reused . | . . . Traps Extracted . | . . . Installed . | . . . Triggered . | . . . Machines | -11 -10 -10 ---------- Run | Yrd Mat Min Machines Disabled 1 | . 1 . Max in Single Turn 1 | . 1 . Machines Repaired . | . . . Machines Dismantled . | . . . Machines Sabotaged . | . . . Overloaded Fab Kills . | . . . Hacking | -11 -10 -10 --------- Run | Yrd Mat Min Machines Accessed 5 | . 5 . Terminals 4 | . 4 . Fabricators . | . . . Repair Stations 1 | . 1 . Recycling Units . | . . . Scanalyzers . | . . . Garrison Access . | . . . Total Hacks 12 | . 12 . Successful 6 | . 6 . Failed 6 | . 6 . Catastrophic 2 | . 2 . Database Lockouts . | . . . Manual 9 | . 9 . Terminals 8 | . 8 . Fabricators . | . . . Repair Stations 4 | . 4 . Recycling Units . | . . . Scanalyzers . | . . . Garrison Access . | . . . Terminal Hacks 3 | . 3 . Level Access Points 1 | . 1 . Branch Access Points 1 | . 1 . Terminal Index 1 | . 1 . Fabricator Hacks . | . . . Repair Station Hacks 2 | . 2 . Scan Component 1 | . 1 . Repair 1 | . 1 . Recycling Unit Hacks . | . . . Scanalyzer . | . . . Garrison Access Hacks . | . . . Unauthorized Hacks 1 | . 1 . Terminals . | . . . Fabricators . | . . . Repair Stations 1 | . 1 . Patch 1 | . 1 . Recycling Units . | . . . Scanalyzers . | . . . Garrison Access . | . . . Data Cores Recovered . | . . . Used . | . . . Hacking Detections 5 | . 5 . Full Trace Events 1 | . 1 . Feedback Events . | . . . Feedback Blocked . | . . . Robot Schematics Acquired . | . . . Robots Built . | . . . Authchips . | . . . Time . | . . . Total Robot Build Rating . | . . . Part Schematics Acquired . | . . . Parts Built . | . . . Authchips . | . . . Time . | . . . Total Part Build Rating . | . . . Parts Repaired 1 | . 1 . Time 26 | . 26 . Parts Recycled . | . . . Recycled Matter . | . . . Retrieved Matter . | . . . Retrieved Components . | . . . Parts Scanalyzed . | . . . Part Schematics Acquired . | . . . Parts Damaged . | . . . Bothacking | -11 -10 -10 ------------ Run | Yrd Mat Min Used RIF Installer . | . . . Robots Hacked . | . . . Non-combat . | . . . Combat . | . . . Robot Hacks Applied . | . . . Relay Couplers Released . | . . . Fabnet Peak Effective % . | . . . Robots Rewired . | . . . Allies Hacked . | . . . Hacks Repelled . | . . . Allies | -11 -10 -10 -------- Run | Yrd Mat Min Total Allies . | . . . Largest Group . | . . . Highest-Rated Group . | . . . Highest-Rated Ally . | . . . Total Orders . | . . . Ally Attacks . | . . . Total Damage . | . . . Kills . | . . . Allies Corrupted . | . . . Allies Melted . | . . . Intel | -11 -10 -10 ------- Run | Yrd Mat Min Active Infowar (turns) 800 | 52 590 158 Terrain 794 | 46 590 158 Seismic 6 | 6 . . Robot Analysis Total . | . . . Derelict Logs Recovered . | . . . Drone Launches . | . . . Drone Recoveries . | . . . Exploration | -11 -10 -10 ------------- Run | Yrd Mat Min Turns Passed 875 | 112 590 173 Spaces Moved 322 | 53 203 66 Core 11 | 11 . . Treads 309 | 42 203 64 Legs . | . . . Wheels 2 | . . 2 Hover . | . . . Flight . | . . . Fastest Speed 50 | 50 160 140 Average Speed 199 | 139 203 236 Slowest Speed 240 | 160 240 240 Overloaded Moves . | . . . Propulsion Burnouts . | . . . Robots Hopped . | . . . Potential Cave-ins . | . . . Cave-ins Triggered . | . . . Exploration Rate (%) 20 | 5 35 20 Regions Visited 2 Branch Regions 1 Pre-discovered Areas . | . . . Known Exits Taken 1 | . 1 . Unknown Exits Taken 1 | 1 . . Scrap Searched 1 | . . 1 Spaces Dug . | . . . Terrain Destroyed . | . . . Melee . | . . . Projectile . | . . . AOE . | . . . Terrain Rammed . | . . . Walls Destroyed . | . . . Machines Disabled . | . . . Actions | -11 -10 -10 --------- Run | Yrd Mat Min Total 458 | 75 306 77 Wait 49 | 2 47 . Move 320 | 52 202 66 Hop . | . . . Pick Up 16 | 6 8 2 Fast Attach 7 | 7 . . Attach 5 | . . 5 Detach . | . . . Swap 8 | 1 5 2 Drop 4 | . 4 . Fire 49 | 7 40 2 Melee . | . . . Ram . | . . . Kick . | . . . Crush . | . . . Escape Stasis . | . . . Rewire . | . . . Trap . | . . . Miscellaneous . | . . . Route ------- -11/Scrapyard -10/Materials (discovered 4 exits: *Mat x3 / *Min) -10/Mines History --------- Turn | Location | Event 7 | -11/Scrapyard | Discovered new exit (range 16) 113 | -11/Scrapyard | Entered Materials 178 | -10/Materials | Identified exit to Mines 178 | -10/Materials | Identified exit to Materials 318 | -10/Materials | Build established: Mutant 536 | -10/Materials | Repaired Lgt. Treads 703 | -10/Materials | Entered Mines 802 | -10/Mines | Assembled infested the area 807 | -10/Mines | Assisted by a Guerilla fighting off Assembled 867 | -10/Mines | Core integrity fell below 50% 871 | -10/Mines | Core integrity fell below 20% 876 | -10/Mines | Destroyed by D-53 Grenadier with Mini Grenade Launcher Last Messages --------------- 00856_ U-05 Engineer builds a Wall. 00857_ U-05 Engineer destroyed. 00860_ Lgt. Ion Engine destroyed. 00861_ Imp. Terrain Scanner destroyed. 00861_ K-01 Serf collects debris. 00863_ Assault Rifle destroyed. 00864_ K-01 Serf collects debris. 00865_ Wheel destroyed. 00866_ The unstable cave ceiling collapses. 00868_ Particle Gun destroyed. 00868_ K-01 Serf collects debris. 00869_ Wheel destroyed. 00869_ G-47 Trooper destroyed. 00871_ The unstable cave ceiling collapses. 00871_ K-01 Serf collects debris. 00872_ The unstable cave ceiling collapses. 00875_ K-01 Serf collects debris. 00875_ Lgt. Treads destroyed. 00876_ Ion Engine destroyed. 00876_ Lgt. Treads destroyed. Map ----- +----------------------------------------------------+ | ???????????# ????????#?????????????????????????? | | ??????#????# #??????????????????????????????????? | | ???????????# #?????????#????????????????????????? | | ??????????## #??????????????????????????????????? | | ?????????## #??????????????????????????????????? | | ????????## ##?????????????????????????????????? | | ???#????# #####???? ????????????????????????? | | ????????# #?????????????????????????????? | | ????????# ## #??#??????????????????????????? | | ????????# ### #?????????????????????????????? | | ????????# ##### #?????????????????????????????? | | ????????## ##?# #?????????????????????????????? | | ?????????## #??# ###????????????? ?????????????? | | ??????????# #### #???????#?????? ????????????? | | ??????????# #?#???????????# ????????????? | | ??????????###### #????????????# ?????????????? | | ?????????????#?# #???????????# ??????????????? | | ??????#????????# #????#?##### t#???????????????? | | ?????????##??### #?????## t #????????????????? | | ????????## ## #?????# #?????????????????? | | ?????#### ####### #?????????????????? | | ?????# r ## # #??????????????????? | | ? % k # ##??????????????????? | | ??#### %% *%t% d #######????????????? | | ?????#### ## = !%% d # ##???????????? | | ?????#??####?## # @ ##??? ??????? | | ??????????????## ## #???? ???????? | | ???????????????## ## ####????????????? | | ???#????????????##### ####??????????????? | | ????#???????????????# #?#???????#???????? | | ????????????????????# ###????????????????? | | ???????????????????### ##??##?????????????? | | ??????????#???????## ##????????????????? | | ??????????????????# ### ##???????????????? | | ???????????????#??# ##?## #???????????????? | | ??????????????#???## ##??# #???????????????? | | ??????????????#????# #??## #??????????????? | | ??????????????????# #???# ##?????????????? | | ?????????????????## #?? ##???????? ?????? | | ??????????????????## ? ###???????????????? | | ???????????????????#### ##??#??????????????? | | ???????????? ?????#????## ##??????????????????? | | ?????????????????????????#####??#?#??????????????? | | ??????????????????????#??????#???????????????????? | | ?????????????????#??????????##???????????????????? | | ?????????????????????????????????????????????????? | | ?????????????????????????????????????????????????? | | ?????????????????????????????????????????????????? | | ????????????????#????????????????????????????????? | | | +----------------------------------------------------+ Best States ------------- Heat Dissipation 25 Energy Generation 10 Energy Capacity 250 Matter Stores 300 Matter Capacity 300 Sight Range 16 Terrain Scan Range 16 Terrain Scan Density 10 Evasion (%) 50 Recoil Reduction 2 Item Schematics ----------------- None Robot Schematics ------------------ None Fabricated ------------ Nothing Repaired ---------- Lgt. Treads | 33% | -10/Materials Alien Tech Used ----------------- None Achievements -------------- None Challenges ------------ None Game ------ Seed BurstArcDrivehammer Manual? 0 Play Time 00:10:03 Cumulative 27.3 hours Start 2025.10.14 @ 03:24:42 End 2025.10.14 @ 03:33:16 Sessions 1 Manual Loads 0 Difficulty Rogue Special Mode None Game No. 34 Rogue 34 Adventurer 0 Explorer 0 Win Type - Total 0 Types 0/0/0/0/0/0/0/0/0/0 Lore% 18 Gallery% 25 Achievement% 21 Wizard Run 0 Options --------- Layout 0 ASCII 0 Keyboard 0 Movement Mouse Keybinds 0 Fullscreen 1 Font 36/Smallcaps Map View 76x50 Zoom Use 0% Tactical HUD 1 Map Filters NONE Filters NONE Steam 1 RUN: 9b1618ed-ea18-4c49-b34f-9b2036483acc